Cogmind - Beta 15 @@@ ROGUE MODE // 2025.10.15 @ 10:21:26 Player: weras Result: Destroyed by D-53 Grenadier with Mini Grenade Launcher Performance ------------- Evolutions (0) 0 Regions Visited (4) 800 Robots Destroyed (25) 125 Value Destroyed (471) 471 Prototype IDs (2) 40 Alien Tech Used (0) 0 Bonus (-22) -22 TOTAL SCORE: 1414 Bonus ------- Follower Combat Kills 7 Friendly Fire -29 Cogmind --------- Core Integrity 0/250 Matter 285/300 Energy 83/100 System Corruption 0% Temperature Cool (0) Movement Rolling (115) Ox1 Location -9/Mines Parts ------- > --- POWER (1) -------- (None) > --- PROPULSION (2) --- Compact Wheel Compact Wheel > --- UTILITY (2) ------ Large Storage Unit Sensor Drone Bay (19/20) > --- WEAPON (2) ------- Light Assault Rifle > --- INVENTORY (15) --- Light Ion Engine Medium Matter Pod (100) Structural Scanner Experimental Sensor Array Assault Rifle Assault Rifle Grenade Launcher Peak State ------------ > --- POWER ------------ Light Nuclear Core > --- PROPULSION ------- Compact Wheel Compact Wheel > --- UTILITY ---------- Medium Storage Unit Experimental Sensor Array > --- WEAPON ----------- Assault Rifle Light Cannon > --- INVENTORY -------- Light Ion Engine Compact Wheel Compact Wheel Medium Matter Pod Structural Scanner Sensor Array Assault Rifle Assault Rifle Assault Rifle Grenade Launcher [Rating: 18] Favorites ----------- Power Light Nuclear Core Engine Ion Engine Power Core Light Nuclear Core Propulsion Compact Wheel Wheel Compact Wheel Utility Structural Scanner Device Structural Scanner Storage Medium Storage Unit Weapon Assault Rifle Energy Gun Medium Laser Ballistic Gun Assault Rifle Ballistic Cannon Light Cannon Launcher Grenade Launcher Build | -11 -10 -10 -10 -9 ------- Run | Yrd Mat Min Exi Min Slots Evolved . | . . . . . Power . | . . . . . Propulsion . | . . . . . Utility . | . . . . . Weapon . | . . . . . Parts Attached 22 | 7 9 2 1 3 Power 3 | 1 1 1 . . Engine 1 | 1 . . . . Core 2 | . 1 1 . . Reactor . | . . . . . Propulsion 5 | 2 2 . . 1 Treads . | . . . . . Leg . | . . . . . Wheel 5 | 2 2 . . 1 Hover . | . . . . . Flight . | . . . . . Utility 7 | 1 3 1 1 1 Device 4 | . 2 1 . 1 Storage 3 | 1 1 . 1 . Processor . | . . . . . Hackware . | . . . . . Protection . | . . . . . Artifact . | . . . . . Weapon 7 | 3 3 . . 1 Energy Gun 1 | 1 . . . . Energy Cannon . | . . . . . Ballistic Gun 4 | 2 1 . . 1 Ballistic Cannon 1 | . 1 . . . Launcher 1 | . 1 . . . Special Weapon . | . . . . . Impact Weapon . | . . . . . Slashing Weapon . | . . . . . Piercing Weapon . | . . . . . Special Melee Weapon . | . . . . . Unidentified Prototypes 2 | . . 1 . 1 Parts Lost 7 | . 1 1 . 5 Power 2 | . . 1 . 1 Propulsion 3 | . 1 . . 2 Utility . | . . . . . Weapon 2 | . . . . 2 Highest Loss Streak 4 | . 1 1 . 4 To Critical Strikes . | . . . . . Average Backups 8 | . 8 9 10 8 Power 1 | . 1 1 1 1 Propulsion 1 | . . 2 2 2 Utility 1 | . 1 2 3 2 Weapon 4 | . 4 4 4 3 Tool/Special . | . . . . . Unused Backups 7 | . 3 . . 4 Power 1 | . . . . 1 Propulsion . | . . . . . Utility 2 | . . . . 2 Weapon 4 | . 3 . . 1 Tool/Special . | . . . . . Average Slot Usage (%) 99 | . 99 100 100 99 Engine 2 | . 7 . . . Core 11 | . 6 14 14 14 Wheel 27 | . 27 28 28 27 Device 13 | . 13 14 14 14 Storage 14 | . 14 14 14 14 Ballistic Gun 17 | . 19 14 14 21 Ballistic Cannon 10 | . 8 14 14 5 Peak Build Rating 18 | 6 10 18 10 18 Average Rating 9 | 4 8 9 10 12 On Entrance 7 | . 6 9 10 10 Naked Turns . | . . . . . Heaviest Build 42 | 14 21 21 31 42 Greatest Support 32 | 26 32 32 32 32 Greatest Overweight (x) 2 | . 1 . . 2 Average Overweight (x) . | . . . . . Largest Inventory Capacity 15 | 8 10 10 15 15 Average Capacity 10 | 7 9 10 10 15 Most Carried 10 | 2 10 10 10 10 Average Carried 8 | 1 8 9 10 8 Final Capacity 15 | 8 10 10 15 15 Final Carried 10 | 2 9 10 10 7 Class Distribution -------------------- 88% | Mutant 11% | Scavenger-Mutant Dominant Class ---------------- Mutant | -10/Materials Mutant | -10/Mines Mutant | -10/Exiles Scavenger-Mutant | -9/Mines Resources | -11 -10 -10 -10 -9 ----------- Run | Yrd Mat Min Exi Min Matter Collected 980 | 236 541 92 20 91 Remotely . | . . . . . Salvage Created 712 | . 476 194 . 42 Parts 47 | . 32 9 . 6 Haulers Intercepted 1 | . 1 . . . Recyclers Shooed 2 | . 1 1 . . Parts Field Recycled . | . . . . . Retrieved Matter . | . . . . . Parts Self-Destructed . | . . . . . Prevented . | . . . . . Kills | -11 -10 -10 -10 -9 ------- Run | Yrd Mat Min Exi Min Combat Hostiles Destroyed 18 | . 12 4 . 2 Guns 10 | . 7 3 . . Cannons 4 | . 3 1 . . AOE 4 | . 2 . . 2 Classes Destroyed 6 | . 5 . . 1 Worker 1 | . . . . 1 Hauler 1 | . 1 . . . Recycler 3 | . 2 1 . . Watcher 2 | . 2 . . . Swarmer 10 | . 6 2 . 2 Grunt 8 | . 6 2 . . Best Kill Streak 4 | . 4 2 . 2 Combat Bots Only 3 | . 3 2 . 2 Max Kills in Single Turn 2 | . 2 1 . 2 Gunslinging . | . . . . . Exploded 2 | . 2 . . 2 Melee . | . . . . . Uniques/NPCs Destroyed . | . . . . . Combat | -11 -10 -10 -10 -9 -------- Run | Yrd Mat Min Exi Min Hostile Shots Fired 90 | . 51 16 . 23 Missed 21 | . 10 4 . 7 Hits 69 | . 41 12 . 16 Projectile 69 | . 41 12 . 16 AOE 8 | . . . . 8 Critical Strikes 1 | . 1 . . . Damage Taken 1046 | . 468 131 . 447 Core 261 | . 146 23 . 92 Absorbed by Shields . | . . . . . Regen/Repaired (Parts) 29 | . 29 . . . Core Remaining (%) 100 | 100 . . . . Volleys Fired 64 | . 47 12 . 5 Largest 2 | . 2 2 . 2 Hottest 60 | . 50 50 . 60 Shots Fired 126 | . 93 24 . 9 Gun 69 | . 53 12 . 4 Cannon 54 | . 39 12 . 3 Launcher 3 | . 1 . . 2 Special . | . . . . . Kinetic 123 | . 92 24 . 7 Thermal . | . . . . . Explosive 3 | . 1 . . 2 Electromagnetic . | . . . . . Robot Hit Streak 8 | . 8 4 . 4 Robot Miss Streak 4 | . 3 4 . 2 Penetration Max . | . . . . . Secondary Targets 1 | . 1 . . . Max Gunslinging Chain 1 | . 1 . . . Shots Hit Robots 77 | . 59 13 . 5 Core Hits 32 | . 20 8 . 4 Critical Kills 1 | . 1 . . . Critical Parts Destroyed . | . . . . . Critical Strikes 2 | . 1 1 . . Destroy 1 | . 1 . . . Blast 1 | . . 1 . . Melee Attacks . | . . . . . Impact . | . . . . . Slashing . | . . . . . Piercing . | . . . . . Sneak Attacks . | . . . . . Combat Hostiles . | . . . . . Follow-up Attacks . | . . . . . Damage Inflicted 1374 | . 981 199 . 194 Guns 576 | . 461 98 . 17 Cannons 560 | . 419 101 . 40 Explosions 238 | . 101 . . 137 Melee . | . . . . . Ramming . | . . . . . Kinetic 1136 | . 880 199 . 57 Thermal . | . . . . . Explosive 238 | . 101 . . 137 Electromagnetic . | . . . . . Impact . | . . . . . Slashing . | . . . . . Piercing . | . . . . . Highest Corruption . | . . . . . Average Corruption . | . . . . . Corruption Purged . | . . . . . Corruption Blocked . | . . . . . Overload Shots . | . . . . . Overflow Damage 11 | . 11 . . . Projectiles . | . . . . . Explosions 11 | . 11 . . . Melee . | . . . . . Knockbacks 8 | . 6 1 . 1 Impact . | . . . . . Kinetic 7 | . 5 1 . 1 Secondary 1 | . 1 . . . Self-Inflicted Damage 26 | . . . . 26 Shots 1 | . . . . 1 Rammed . | . . . . . Targets Rammed . | . . . . . Kicked . | . . . . . Crushed . | . . . . . Highest Temperature 57 | . 57 30 . 12 Average Temperature 15 | . 17 17 . 5 Received Heat Transfer 285 | . 231 54 . . Siege Activations . | . . . . . Martial Activations . | . . . . . Shielding Activations . | . . . . . Robots Disrupted . | . . . . . Combat Hostiles . | . . . . . Robots Corrupted . | . . . . . Combat Hostiles . | . . . . . Parts Fried . | . . . . . Impact Corruptions . | . . . . . Robots Melted . | . . . . . Combat Hostiles . | . . . . . Parts Melted . | . . . . . Heat Transferred . | . . . . . Parts Sabotaged . | . . . . . Parts Stolen . | . . . . . Parts Stripped . | . . . . . Power Chain Reactions . | . . . . . Alert | -11 -10 -10 -10 -9 ------- Run | Yrd Mat Min Exi Min Maximum Alert Level . | . . . . . Low Security (%) 100 | 100 100 100 . 100 Level 1 . | . . . . . Level 2 . | . . . . . Level 3 . | . . . . . Level 4 . | . . . . . Level 5 . | . . . . . High Security . | . . . . . Max Security . | . . . . . Peak Influence 128 | . 128 68 . 59 Initial 18 | . . 18 . . Average 43 | . 75 19 . 12 Influence Increases 674 | . 421 144 . 109 Destroy 0b10 Robot/C 380 | . 240 100 . 40 Destroy 0b10 Robot/NC 35 | . 25 5 . 5 Destroy Leader 76 | . 56 20 . . Allied During Kill 4 | . . 4 . . Successful Hack 33 | . 33 . . . Disable Machine 30 | . 30 . . . Destroy Structure 26 | . 7 . . 19 Partial Spotted 15 | . . . . 15 Lose Combat Pursuer 75 | . 30 15 . 30 Influence Decreases 674 | . 374 191 . 109 Entered New Map 29 | . . 29 . . Time Decay 601 | . 364 152 . 85 Lost Part 25 | . 10 10 . 5 Lost Ally 19 | . . . . 19 Squads Dispatched 2 | . 2 . . . Investigation 2 | . 2 . . . Extermination . | . . . . . Reinforcement . | . . . . . Assault . | . . . . . Garrison . | . . . . . Intercept . | . . . . . Searches Triggered . | . . . . . Construction Impeded . | . . . . . Haulers Reinforced . | . . . . . Active Scanning Responses . | . . . . . Cargo Convoy Interrupts . | . . . . . Stealth | -11 -10 -10 -10 -9 --------- Run | Yrd Mat Min Exi Min Distress Signals 1 | . 1 . . . Communications Jammed . | . . . . . Distress Signals . | . . . . . Times Spotted 38 | . 18 6 . 14 Peak Tracking Total 10 | . 4 3 . 10 Tactical Retreats 4 | . 1 1 . 2 Traps | -11 -10 -10 -10 -9 ------- Run | Yrd Mat Min Exi Min Traps Triggered 1 | . 1 . . . Indirectly . | . . . . . Trap Hack Attempts . | . . . . . Triggered . | . . . . . Disarmed 3 | . 3 . . . Reprogrammed . | . . . . . Reused . | . . . . . Traps Extracted . | . . . . . Installed . | . . . . . Triggered . | . . . . . Machines | -11 -10 -10 -10 -9 ---------- Run | Yrd Mat Min Exi Min Machines Disabled 2 | . 2 . . . Max in Single Turn 1 | . 1 . . . Machines Repaired . | . . . . . Machines Dismantled . | . . . . . Machines Sabotaged . | . . . . . Overloaded Fab Kills . | . . . . . Hacking | -11 -10 -10 -10 -9 --------- Run | Yrd Mat Min Exi Min Machines Accessed 14 | . 10 . 1 3 Terminals 10 | . 8 . . 2 Fabricators . | . . . . . Repair Stations 1 | . 1 . . . Recycling Units 1 | . 1 . . . Scanalyzers . | . . . . . Garrison Access . | . . . . . Total Hacks 36 | . 31 . 1 4 Successful 21 | . 19 . 1 1 Failed 14 | . 11 . . 3 Catastrophic 1 | . 1 . . . Database Lockouts 1 | . 1 . . . Manual 19 | . 18 . . 1 Terminals 30 | . 27 . . 3 Fabricators . | . . . . . Repair Stations 3 | . 3 . . . Recycling Units 1 | . 1 . . . Scanalyzers . | . . . . . Garrison Access . | . . . . . Terminal Hacks 11 | . 9 . 1 1 Record 1 | . . . 1 . Robot Analysis 2 | . 2 . . . Open Door 1 | . . . . 1 Branch Access Points 1 | . 1 . . . Alert Level 1 | . 1 . . . Locate Traps 1 | . 1 . . . Disarm Traps 1 | . 1 . . . Zone Layout 3 | . 3 . . . Fabricator Hacks . | . . . . . Repair Station Hacks 2 | . 2 . . . Scan Component 1 | . 1 . . . Repair 1 | . 1 . . . Recycling Unit Hacks . | . . . . . Scanalyzer . | . . . . . Garrison Access Hacks . | . . . . . Unauthorized Hacks 8 | . 8 . . . Terminals 8 | . 8 . . . Botnet 3 | . 3 . . . Skim 5 | . 5 . . . Fabricators . | . . . . . Repair Stations . | . . . . . Recycling Units . | . . . . . Scanalyzers . | . . . . . Garrison Access . | . . . . . Data Cores Recovered . | . . . . . Used . | . . . . . Hacking Detections 9 | . 7 . . 2 Full Trace Events 1 | . 1 . . . Feedback Events . | . . . . . Feedback Blocked . | . . . . . Robot Schematics Acquired . | . . . . . Robots Built . | . . . . . Authchips . | . . . . . Time . | . . . . . Total Robot Build Rating . | . . . . . Part Schematics Acquired . | . . . . . Parts Built . | . . . . . Authchips . | . . . . . Time . | . . . . . Total Part Build Rating . | . . . . . Parts Repaired 1 | . 1 . . . Time 26 | . 26 . . . Parts Recycled . | . . . . . Recycled Matter . | . . . . . Retrieved Matter . | . . . . . Retrieved Components . | . . . . . Parts Scanalyzed . | . . . . . Part Schematics Acquired . | . . . . . Parts Damaged . | . . . . . Bothacking | -11 -10 -10 -10 -9 ------------ Run | Yrd Mat Min Exi Min Used RIF Installer . | . . . . . Robots Hacked . | . . . . . Non-combat . | . . . . . Combat . | . . . . . Robot Hacks Applied . | . . . . . Relay Couplers Released . | . . . . . Fabnet Peak Effective % . | . . . . . Robots Rewired . | . . . . . Allies Hacked . | . . . . . Hacks Repelled . | . . . . . Allies | -11 -10 -10 -10 -9 -------- Run | Yrd Mat Min Exi Min Total Allies 2 | . . 1 . 1 Largest Group 1 | . . 1 . 1 Highest-Rated Group 31 | . . 31 . 31 Highest-Rated Ally 31 | . . 31 . 31 Total Orders 1 | . . . . 1 EXPLORE 1 | . . . . 1 Ally Attacks 8 | . . 2 . 6 Total Damage 62 | . . 20 . 42 Kills 2 | . . 1 . 1 Allies Corrupted . | . . . . . Allies Melted . | . . . . . Intel | -11 -10 -10 -10 -9 ------- Run | Yrd Mat Min Exi Min Active Infowar (turns) 2000 | . 852 571 322 255 Sensors 5 | . . 2 . 3 Structural 1995 | . 852 569 322 252 Robot Analysis Total 2 | . 2 . . . Derelict Logs Recovered 2 | . . 1 . 1 Drone Launches 2 | . . . . 2 Drone Recoveries 1 | . . . . 1 Exploration | -11 -10 -10 -10 -9 ------------- Run | Yrd Mat Min Exi Min Turns Passed 2204 | 51 860 572 322 399 Spaces Moved 1903 | 36 699 496 322 350 Core 3 | 3 . . . . Treads . | . . . . . Legs . | . . . . . Wheels 1900 | 33 699 496 322 350 Hover . | . . . . . Flight . | . . . . . Fastest Speed 50 | 50 90 100 100 100 Average Speed 98 | 87 94 100 100 105 Slowest Speed 130 | 100 115 100 100 130 Overloaded Moves . | . . . . . Propulsion Burnouts . | . . . . . Robots Hopped . | . . . . . Potential Cave-ins . | . . . . . Cave-ins Triggered . | . . . . . Exploration Rate (%) 67 | 4 93 98 69 72 Regions Visited 4 Branch Regions 3 Pre-discovered Areas 4 | . 2 1 . 1 Known Exits Taken 1 | . 1 . . . Unknown Exits Taken 3 | 1 . 1 1 . Scrap Searched 1 | . . 1 . . Spaces Dug . | . . . . . Terrain Destroyed 24 | . 5 . . 19 Melee . | . . . . . Projectile . | . . . . . AOE 24 | . 5 . . 19 Terrain Rammed . | . . . . . Walls Destroyed . | . . . . . Machines Disabled . | . . . . . Actions | -11 -10 -10 -10 -9 --------- Run | Yrd Mat Min Exi Min Total 2094 | 51 802 547 323 371 Wait 74 | 7 30 33 . 4 Move 1899 | 35 698 495 321 350 Hop . | . . . . . Pick Up 18 | 2 11 3 . 2 Fast Attach 8 | 6 2 . . . Attach 5 | . . 2 . 3 Detach . | . . . . . Swap 15 | 1 7 1 1 5 Drop 11 | . 7 1 1 2 Fire 64 | . 47 12 . 5 Melee . | . . . . . Ram . | . . . . . Kick . | . . . . . Crush . | . . . . . Escape Stasis . | . . . . . Rewire . | . . . . . Trap . | . . . . . Miscellaneous . | . . . . . Route ------- -11/Scrapyard -10/Materials (discovered 4 exits: *Mat x3 / *Min) -10/Mines (discovered 3 exits: *Mat x2 / *Exi) -10/Exiles (discovered 2 exits: *Min x2) -9/Mines History --------- Turn | Location | Event 19 | -11/Scrapyard | Discovered new exit (range 15) 52 | -11/Scrapyard | Entered Materials 284 | -10/Materials | Discovered new exit (range 5) 307 | -10/Materials | Build established: Mutant 445 | -10/Materials | Learned location of Subcaves (-10) 471 | -10/Materials | Core integrity fell below 50% 490 | -10/Materials | Identified exit to Materials 524 | -10/Materials | Learned 2 Storage zone layouts 538 | -10/Materials | Central database locked down 548 | -10/Materials | Learned 4 Subcaves zone layouts 564 | -10/Materials | Learned 4 Subcaves zone layouts 572 | -10/Materials | Repaired Com. Wheel 582 | -10/Materials | Learned Storage trap positions 652 | -10/Materials | Identified exit to Mines 779 | -10/Materials | Discovered exit to Materials (range 5) 912 | -10/Materials | Entered Mines 950 | -10/Mines | Discovered exit to Materials (range 16) 1009 | -10/Mines | Received a Rocket Launcher from a helpful Derelict 1031 | -10/Mines | Discovered exit to Materials (range 9) 1035 | -10/Mines | Received a Mining Laser from a helpful Derelict 1381 | -10/Mines | Learned location of Zion (-7) 1461 | -10/Mines | Found a damaged Exp. Sensor Array with a note attached 1463 | -10/Mines | Found Prototype Device 1474 | -10/Mines | Deemed a non-threat by the Exiles lab entrance 1474 | -10/Mines | Discovered new exit (range 6) 1475 | -10/Mines | Identified Exp. Sensor Array 1484 | -10/Mines | Entered Exiles 1484 | -10/Exiles | Found Exiles lab abandoned 1500 | -10/Exiles | Discovered new exit (range 15) 1750 | -10/Exiles | Discovered new exit (range 14) 1806 | -10/Exiles | Entered Mines 1834 | -9/Mines | Escorted by a lone wolf Derelict 1854 | -9/Mines | Learned location of Storage (-8) 1912 | -9/Mines | Assembled infested the area 1917 | -9/Mines | Assisted by a Guerilla fighting off Assembled 1964 | -9/Mines | Core integrity fell below 20% 2020 | -9/Mines | Learned 4 Materials zone layouts 2053 | -9/Mines | Found the Drone Emporium 2060 | -9/Mines | Found Prototype Device 2061 | -9/Mines | Identified Sensor Drone Bay 2205 | -9/Mines | Destroyed by D-53 Grenadier with Mini Grenade Launcher Last Messages --------------- 02064_ Sensor Drone released from Sensor Drone Bay. 02089_ K-01 Serf collects debris. 02105_ The unstable cave ceiling collapses. 02105_ Sensor Drone destroyed. 02105_ K-01 Serf collects debris. 02106_ The unstable cave ceiling collapses. 02108_ R-06 Scavenger collects Sml. Matter Pod. 02111_ Sensor Drone retrieved by Sensor Drone Bay (repair cost: 9). 02135_ Connecting with Terminal... 02195_ K-01 Serf collects debris. 02196_ The unstable cave ceiling collapses. 02198_ Com. Wheel destroyed. 02200_ K-01 Serf collects debris. 02202_ Com. Wheel destroyed. 02202_ Assault Rifle destroyed. 02203_ Lgt. Nuclear Core destroyed. 02203_ D-53 Grenadier destroyed. 02203_ K-01 Serf destroyed. Map ----- +----------------------------------------------------+ | ??????????????????????????########???????????????? | | ?????????????????????????##########??????????????? | | ?????????????????????????###""""###??????????????? | | ?????????????????????????##" "##??????????????? | | ?????????????????????????##" "####????????????? | | ????????????????????????#### ######???????????? | | ????????????????????######### ## ###???????????? | | #########??????????###### X ##???????????? | | ###############????## ##???????????? | | #########???## ## ##???????????? | | ###### ### ####??## ## ####?????????? | | ###### ### ####### ## ### ##T#########?? | | ?????## ###### ## ###### ### #?? | | ?????####### ## ## ########### """ """ #?? | | ?????######## ##???###### """ """ #?? | | ?????????#### ##????????# """ """ #?? | | ?????????### #########????????# #?? | | ?????????## ##########????##### """ """ #?? | | ????????### #############??# """ """ #?? | | ???????#### ###### ##?# """ """ #?? | | ???????### ## #?# ## #?? | | ???????## ### ######## ##?? | | ???????## #??????# #??? | | #### ##### #????### ###? | | #### ###### ######????# #? | | @ #????##### """ #? | | ## ##????# """ #? | | ########## ### t ##?????# ### """ #? | | ######### ## # # ###??????# #?# #? | | ??????## #### # dt ############# #?######T#? | | ??????## #### #??????###? | | ??????### # ################???????? | | ??????#### r # ########????######??????? | | ???????### #######%# ## ##????# ###??????? | | ????????## #### # u # ###?## ###?????? | | ????????## ### # ###### ###?????? | | ???????### ### ## #### ######?? | | ???????###= #### # ## ######?? | | ???????## * ##?# # ##?? | | ????#####!####?# # ##?? | | ????##### ####?## #* ##### ##?? | | ????## ##????### % % ###### ###? | | ????## ###############! ####### ###? | | ????## ################ ######### ##? | | ###### #### ####### % ######### ###? | | ###### ######## #####? | | # % ! ####?? | | # # ### #### %! =%* ##???? | | # # ### ## #### ####% [ ##???? | | # ######### ##### #### ##???? | +----------------------------------------------------+ Best States ------------- Heat Dissipation 25 Energy Generation 14 Energy Capacity 250 Matter Stores 300 Matter Capacity 300 Sight Range 16 Terrain Scan Density 10 Evasion (%) 42 Item Schematics ----------------- None Robot Schematics ------------------ None Fabricated ------------ Nothing Repaired ---------- Com. Wheel | 3% | -10/Materials Alien Tech Used ----------------- None Achievements -------------- Slippery One Challenges ------------ None Game ------ Seed RemoteSignalBank Manual? 0 Play Time 00:21:03 Cumulative 24.2 hours Start 2025.10.14 @ 19:48:37 End 2025.10.15 @ 10:21:26 Sessions 3 Manual Loads 0 Difficulty Rogue Special Mode None Game No. 28 Rogue 28 Adventurer 0 Explorer 0 Win Type - Total 0 Types 0/0/0/0/0/0/0/0/0/0 Lore% 21 Gallery% 18 Achievement% 21 Wizard Run 0 Options --------- Layout 1 ASCII 0 Keyboard 0 Movement Numpad Keybinds 0 Fullscreen 1 Font 24/Crisp Map View 50x35 Zoom Use 0% Tactical HUD 1 Map Filters NONE Filters NONE Steam 1 RUN: a26d822f-5db5-4343-a1e5-36fe3ec3d462